Cogmind - Beta 16 @@@ ROGUE MODE // 2025.12.28 @ 16:46:37 Player: lvl5hm Result: Destroyed by P-80 Master with Gamma Rifle Performance ------------- Evolutions (8) 4000 Regions Visited (11) 2200 Robots Destroyed (178) 890 Value Destroyed (5978) 5978 Prototype IDs (17) 340 Alien Tech Used (0) 0 Bonus (123) 123 TOTAL SCORE: 13531 Bonus ------- High Alert Combat Kills 123 Cogmind --------- Core Integrity 0/1450 Matter 293/300 Energy 100/100 System Corruption 18% Temperature Cool (0) Movement Core (700) Ox13 Location -2/Research Parts ------- > --- POWER (3) -------- (None) > --- PROPULSION (6) --- (None) > --- UTILITY (11) ----- High-capacity Storage Unit Experimental Signal Interpreter Experimental Terrain Scan Processor > --- WEAPON (3) ------- (None) > --- INVENTORY (20) --- Advanced Heat Sink Medium Storage Unit Long-range Sensor Array Long-range Terrain Scanner Core Analyzer Improved Transmission Jammer Advanced Transmission Jammer Centrium Heavy Armor Plating Advanced Point Defense System Hacking Suite Authchip [Propulsion] Authchip [Propulsion] Gamma Rifle Enhanced Hardcell Cannon Ionic Axe Peak State ------------ > --- POWER ------------ Light Antimatter Reactor Light Antimatter Reactor Micro Antimatter Reactor > --- PROPULSION ------- Armored Heavy Treads Biometal Heavy Treads Impulse Thruster Array > --- UTILITY ---------- Advanced Cryofiber Web High-capacity Storage Unit Long-range Sensor Array Experimental Signal Interpreter Experimental Terrain Scan Processor Experimental Transmission Jammer Centrium Heavy Armor Plating Improved Hacking Suite Advanced Hacking Suite Advanced Hacking Suite > --- WEAPON ----------- Enhanced Quantum Rifle Enhanced Quantum Rifle Enhanced Hardcell Cannon > --- INVENTORY -------- Advanced Heat Sink Advanced Heat Sink Advanced Heat Sink Medium Storage Unit Long-range Terrain Scanner Core Analyzer Improved Transmission Jammer Advanced Transmission Jammer Centrium Heavy Armor Plating Centrium Heavy Armor Plating Advanced Point Defense System Hacking Suite Authchip [Propulsion] Authchip [Propulsion] Ionic Axe [Rating: 185] Favorites ----------- Power Cooled Ion Engine Engine Cooled Ion Engine Power Core Light Fission Core Reactor Light Antimatter Reactor Propulsion Light Treads Treads Light Treads Wheel Armored Huge Wheel Flight Unit Improved Surge Thruster Utility High-capacity Storage Unit Device Seismic Detector Storage High-capacity Storage Unit Processor Advanced Visual Processing Unit Hackware Hacking Suite Protection Light Armor Plating Weapon Improved Assault Rifle Energy Gun Enhanced Quantum Rifle Energy Cannon Cooled Particle Cannon Ballistic Gun Improved Assault Rifle Ballistic Cannon Enhanced Hardcell Cannon Launcher Shock Bomb Launcher Special Weapon Remote Datajack Slashing Weapon Scythe Piercing Weapon Enhanced Force Lance Build | -11 -10 -9 -8 -7 -6 -6 -6 -5 -4 -3 -2 ------- Run | Yrd Mat Mat Mat Fac Fac Was Fac Fac Fac Res Res Slots Evolved 16 | . . 2 2 2 2 . . 2 2 2 2 Power 2 | . . . . . . . . . 1 . 1 Propulsion 4 | . . 1 1 . . . . 1 1 . . Utility 9 | . . 1 1 2 2 . . 1 . 2 . Weapon 1 | . . . . . . . . . . . 1 Parts Attached 188 | 7 11 27 36 25 23 1 3 9 3 16 27 Power 24 | 1 3 2 4 3 1 . 1 . 2 1 6 Engine 13 | 1 3 2 4 3 . . . . . . . Core 4 | . . . . . 1 . 1 . 2 . . Reactor 7 | . . . . . . . . . . 1 6 Propulsion 54 | 2 2 13 12 9 7 . 1 1 1 2 4 Treads 40 | 2 2 13 12 8 1 . . . . . 2 Leg . | . . . . . . . . . . . . Wheel 1 | . . . . 1 . . . . . . . Hover . | . . . . . . . . . . . . Flight 13 | . . . . . 6 . 1 1 1 2 2 Utility 76 | 2 2 5 11 9 13 1 1 8 . 11 13 Device 27 | 1 . 2 4 4 3 . . 2 . 5 6 Storage 5 | 1 2 . . . . . 1 . . . 1 Processor 6 | . . . 1 1 2 . . . . 1 1 Hackware 19 | . . . . 1 7 1 . 5 . 3 2 Protection 19 | . . 3 6 3 1 . . 1 . 2 3 Artifact . | . . . . . . . . . . . . Weapon 34 | 2 4 7 9 4 2 . . . . 2 4 Energy Gun 6 | 1 1 . 2 . . . . . . . 2 Energy Cannon 6 | . 1 1 . 2 2 . . . . . . Ballistic Gun 10 | 1 2 3 4 . . . . . . . . Ballistic Cannon 1 | . . . . . . . . . . . 1 Launcher 5 | . . 2 3 . . . . . . . . Special Weapon 2 | . . 1 . 1 . . . . . . . Impact Weapon . | . . . . . . . . . . . . Slashing Weapon 3 | . . . . 1 . . . . . 1 1 Piercing Weapon 1 | . . . . . . . . . . 1 . Special Melee Weapon . | . . . . . . . . . . . . Unidentified Prototypes 13 | . . 3 3 1 . . . 1 . 1 4 Parts Lost 49 | . 2 . 15 3 . . 1 . 3 7 18 Power 10 | . . . 1 1 . . . . 2 . 6 Propulsion 10 | . . . 6 . . . . . . 1 3 Utility 23 | . . . 7 2 . . 1 . 1 5 7 Weapon 6 | . 2 . 1 . . . . . . 1 2 Highest Loss Streak 13 | . 2 . 3 2 . . 1 . 2 3 13 To Critical Strikes . | . . . . . . . . . . . . Average Backups 13 | . 8 19 19 19 14 5 4 8 8 8 9 Power 1 | . 1 2 1 1 . . . . . . . Propulsion 2 | . 1 3 3 3 1 1 1 1 1 2 . Utility 5 | . 1 3 6 8 9 3 3 6 6 5 8 Weapon 4 | . 3 8 7 5 2 . . . . . . Tool/Special . | . . . . . . . . . . . . Unused Backups 46 | . 3 9 4 6 9 1 . 1 . 2 11 Power 5 | . . 2 2 1 . . . . . . . Propulsion 3 | . . . . . 2 . . . . . 1 Utility 20 | . . 1 . 2 4 1 . 1 . 2 9 Weapon 17 | . 3 6 2 2 3 . . . . . 1 Tool/Special 1 | . . . . 1 . . . . . . . Average Slot Usage (%) 93 | . 99 99 94 94 95 93 91 91 87 82 71 Engine 6 | . 14 11 9 6 3 . . . . . . Core 1 | . . . . . 2 6 6 5 8 2 1 Treads 20 | . 28 33 34 23 16 . . . . . 4 Flight 6 | . . . . . 9 26 26 28 25 23 8 Device 10 | . 14 11 10 11 12 6 6 6 6 8 9 Storage 7 | . 14 11 9 7 3 . . 4 5 4 4 Processor 6 | . . . 3 14 13 13 13 11 7 7 8 Hackware 7 | . . . . 1 14 26 25 22 26 20 17 Protection 5 | . . 10 8 8 5 6 6 3 . 4 2 Energy Gun 1 | . 7 . . . . . . . . . 2 Energy Cannon 4 | . 5 8 . 12 7 . . . . . . Ballistic Gun 7 | . 14 13 17 1 . . . . . . . Slashing Weapon 1 | . . . . . 2 6 6 5 5 3 1 Peak Build Rating 185 | 7 8 20 26 56 61 64 65 81 92 111 185 Average Rating 48 | 5 7 18 22 45 57 62 63 74 88 101 143 On Entrance 46 | . 7 8 20 24 55 60 64 60 80 83 95 Avg Prop Armor Cover (%) 9 | . . . . 11 16 . . 9 16 5 6 Naked Turns . | . . . . . . . . . . . . Heaviest Build 123 | 13 51 60 67 74 85 12 13 26 29 37 123 Greatest Support 135 | 40 40 60 80 120 120 18 22 33 41 43 135 Greatest Overweight (x) 25 | 3 1 1 1 2 2 . . 2 1 . 25 Average Overweight (x) . | . . . . . . . . . . . . Largest Inventory Capacity 20 | 8 20 20 20 20 20 5 10 10 10 10 20 Average Capacity 16 | 7 18 20 20 20 14 5 5 9 10 10 15 Most Carried 20 | 2 13 20 20 20 20 5 5 10 10 10 17 Average Carried 14 | . 8 19 19 19 14 4 4 8 8 9 11 Final Capacity 20 | 8 20 20 20 20 5 5 5 10 10 10 20 Final Carried 20 | 2 13 20 20 20 5 5 5 10 10 10 16 Class Distribution -------------------- 45% | Scavenger-Mutant 20% | Mutant 13% | Hacker-Scout 9% | Wizard-Scout Dominant Class ---------------- Scavenger-Mutant | -10/Materials Scavenger-Mutant | -9/Materials Scavenger-Mutant | -8/Materials Mutant | -7/Factory Mutant | -6/Factory Hacker-Scout | -6/Waste Hacker-Scout | -6/Factory Hacker-Scout | -5/Factory Wizard-Scout | -4/Factory Wizard-Scout | -3/Research Wizard-Scout | -2/Research Resources | -11 -10 -9 -8 -7 -6 -6 -6 -5 -4 -3 -2 ----------- Run | Yrd Mat Mat Mat Fac Fac Was Fac Fac Fac Res Res Matter Collected 4441 | 291 260 716 1066 414 290 10 10 74 230 102 978 Remotely . | . . . . . . . . . . . . Salvage Created 7806 | 181 576 1660 1980 1000 392 . 96 74 261 27 1559 Parts 392 | 14 30 111 103 43 11 . 3 2 5 1 69 Haulers Intercepted 11 | . 1 6 4 . . . . . . . . Recyclers Shooed 4 | . . . 1 1 . . . . . 1 1 Parts Field Recycled . | . . . . . . . . . . . . Retrieved Matter . | . . . . . . . . . . . . Parts Self-Destructed . | . . . . . . . . . . . . Prevented . | . . . . . . . . . . . . Parts Restored . | . . . . . . . . . . . . Kills | -11 -10 -9 -8 -7 -6 -6 -6 -5 -4 -3 -2 ------- Run | Yrd Mat Mat Mat Fac Fac Was Fac Fac Fac Res Res Combat Hostiles Destroyed 117 | . 14 31 33 16 4 . . . . . 19 Melee 1 | . . . . . . . . . . . 1 Guns 49 | . 9 11 26 . . . . . . . 3 Cannons 53 | . 5 17 . 13 3 . . . . . 15 AOE 10 | . . 3 7 . . . . . . . . Classes Destroyed 14 | 2 5 3 2 2 . . . . . . . Worker 8 | . . 4 2 . . . . . . . 2 Builder 2 | . . . 1 . . . . . . . 1 Tunneler 7 | 5 . . 1 . . . . . . 1 . Hauler 11 | . 1 6 4 . . . . . . . . Recycler 12 | 1 . . 2 2 1 . . . 2 . 4 Operator 6 | . 1 3 1 . . . 1 . . . . Watcher 15 | . 1 2 4 2 1 . 2 2 . . 1 Swarmer 21 | . 3 7 6 1 . . . . . . 4 Grunt 48 | . 11 14 14 5 3 . . . . . 1 Duelist 4 | . . 1 1 2 . . . . . . . Sentry 25 | . . 9 10 3 . . . . . . 3 Specialist 2 | . . . 2 . . . . . . . . Hunter 4 | . . . . 1 . . . . . . 3 Programmer 13 | . . . . 4 1 . . . . . 8 Best Kill Streak 8 | 6 3 6 6 6 3 . 1 1 1 1 8 Combat Bots Only 7 | . 3 4 5 3 3 . . . . . 7 Max Kills in Single Turn 3 | 1 1 3 3 1 1 . 1 1 1 1 2 Gunslinging . | . . . . . . . . . . . . Exploded 3 | . . 3 3 . . . . . . . . Melee 1 | . . . . . . . . . . . 1 Uniques/NPCs Destroyed . | . . . . . . . . . . . . Combat | -11 -10 -9 -8 -7 -6 -6 -6 -5 -4 -3 -2 -------- Run | Yrd Mat Mat Mat Fac Fac Was Fac Fac Fac Res Res Hostile Shots Fired 1270 | . 87 108 244 133 42 . 21 24 40 84 487 Missed 410 | . 17 28 79 47 23 . 15 14 19 48 120 Hits 860 | . 70 80 165 86 19 . 6 10 21 36 367 Melee 7 | . . . . 7 . . . . . . . Projectile 853 | . 70 80 165 79 19 . 6 10 21 36 367 AOE 7 | . . . . . . . . . 7 . . Critical Strikes 32 | . 2 2 4 3 1 . . . . 1 19 Actively Blocked 1 | . . . . . . . . . . 1 . Part Disruptions 5 | . . . . . . . . . 4 . 1 Damage Taken 16338 | . 813 988 2631 1337 316 . 139 137 687 811 8479 Core 2360 | . 151 155 271 92 18 . . . 49 173 1451 Absorbed by Shields . | . . . . . . . . . . . . Reduced by Siege Mode 176 | . . . . . . . . . . . 176 Redirected to Shielding 273 | . . . 5 . . . . . . 268 . Ignored by Resistances 9 | . . . . 9 . . . . . . . Regen/Repaired (Parts) 368 | . . . . . 116 . 34 76 99 . 43 Core Remaining (%) 79 | 100 39 61 50 86 . . 97 100 95 86 . Volleys Fired 460 | 7 60 118 118 66 27 . . . . . 64 Largest 3 | 2 2 2 2 2 2 . . . . . 3 Hottest 188 | 70 80 100 90 90 120 . . . . . 188 Shots Fired 872 | 14 119 232 225 116 39 . . . . . 127 Gun 524 | 14 106 125 214 . . . . . . . 65 Cannon 332 | . 13 103 . 115 39 . . . . . 62 Launcher 13 | . . 2 11 . . . . . . . . Special 3 | . . 2 . 1 . . . . . . . Kinetic 448 | 7 62 125 192 . . . . . . . 62 Thermal 388 | 7 57 105 . 115 39 . . . . . 65 Explosive 6 | . . 2 4 . . . . . . . . Electromagnetic 29 | . . . 29 . . . . . . . . Robot Hit Streak 20 | 4 14 17 20 12 5 . . . . . 15 Robot Miss Streak 5 | 3 4 4 4 5 2 . . . . . 3 Penetration Max . | . . . . . . . . . . . . Secondary Targets 4 | . 1 . 3 . . . . . . . . Max Gunslinging Chain 1 | . 1 . 1 . . . . . . . . Shots Hit Robots 599 | 7 81 143 175 64 22 . 4 2 9 5 87 Core Hits 268 | 7 30 57 86 27 8 . 3 2 2 1 45 Critical Kills 7 | . . 2 3 2 . . . . . . . Critical Parts Destroyed 2 | . . 1 1 . . . . . . . . Critical Strikes 15 | 1 . 3 4 2 . . . . . . 5 Burn 1 | 1 . . . . . . . . . . . Meltdown 3 | . . 1 . 2 . . . . . . . Destroy 6 | . . 2 4 . . . . . . . . Blast 5 | . . . . . . . . . . . 5 Melee Attacks 155 | . . . . 1 27 . 23 46 24 28 6 Impact . | . . . . . . . . . . . . Slashing 155 | . . . . 1 27 . 23 46 24 28 6 Piercing . | . . . . . . . . . . . . Sneak Attacks 9 | . . . . . 2 . . . 2 3 2 Combat Hostiles . | . . . . . . . . . . . . Follow-up Attacks . | . . . . . . . . . . . . Damage Inflicted 15212 | 96 1006 2771 3877 1935 752 . 176 83 417 292 3807 Guns 6203 | 96 793 1180 2660 . . . . . . . 1474 Cannons 6119 | . 209 1416 . 1935 440 . . . . . 2119 Explosions 1381 | . . 164 1217 . . . . . . . . Melee 1462 | . . . . . 312 . 176 83 417 292 182 Ramming 47 | . 4 11 . . . . . . . . 32 Kinetic 6127 | 47 449 1180 2332 . . . . . . . 2119 Thermal 6029 | 49 553 1416 162 1935 440 . . . . . 1474 Explosive 899 | . . 164 735 . . . . . . . . Electromagnetic 648 | . . . 648 . . . . . . . . Impact . | . . . . . . . . . . . . Slashing 1462 | . . . . . 312 . 176 83 417 292 182 Piercing . | . . . . . . . . . . . . Highest Corruption 18 | . . . . 2 . . . . 7 4 18 Average Corruption 3 | . . . . 1 . . . . 4 4 5 Corruption Purged . | . . . . . . . . . . . . Corruption Blocked . | . . . . . . . . . . . . Effects 39 | . . . . 4 . . . . 9 1 25 Message Errors 13 | . . . . 1 . . . . 2 . 10 Matter Fused 5 | . . . . . . . . . 1 . 4 Heat Flow Errors 3 | . . . . . . . . . 1 . 2 Energy Discharges 5 | . . . . 2 . . . . . 1 2 Parts Fused 2 | . . . . . . . . . 2 . . Data Loss (minor) 5 | . . . . 1 . . . . 1 . 3 Data Loss (major) 3 | . . . . . . . . . 2 . 1 Misdirections 1 | . . . . . . . . . . . 1 Weapon Failures 2 | . . . . . . . . . . . 2 Overload Shots 16 | . . . . 10 6 . . . . . . Effects 2 | . . . . 1 1 . . . . . . Energy Bleed 1 | . . . . 1 . . . . . . . Heat Surge 1 | . . . . . 1 . . . . . . Overflow Damage 401 | . 2 16 102 27 34 . 6 . 34 45 135 Projectiles 188 | . 2 4 . 27 20 . . . . . 135 Explosions 114 | . . 12 102 . . . . . . . . Melee 99 | . . . . . 14 . 6 . 34 45 . Knockbacks 18 | . . . . . . . . . . . 18 Impact . | . . . . . . . . . . . . Kinetic 17 | . . . . . . . . . . . 17 Secondary 1 | . . . . . . . . . . . 1 Self-Inflicted Damage 253 | . . . 253 . . . . . . . . Shots 8 | . . . 8 . . . . . . . . Rammed 6 | . 1 1 . . . . . . . . 4 Targets Rammed 7 | . 1 1 . . . . . . . . 5 Kicked . | . . . . . . . . . . . . Crushed 1 | . . . . . . . . . . . 1 Highest Temperature 300 | 27 169 90 8 200 201 . 5 131 300 29 219 Average Temperature 42 | 13 57 39 3 49 58 . 1 24 72 7 53 Received Heat Transfer 2757 | . 390 414 945 222 126 . . 27 21 81 531 Effects 1 | . . . . . 1 . . . . . . Interference 1 | . . . . . 1 . . . . . . Siege Activations 2 | . . . . . . . . . . . 2 Total Turns 52 | . . . . . . . . . . . 52 Longest Duration 46 | . . . . . . . . . . . 46 Martial Activations . | . . . . . . . . . . . . Shielding Activations . | . . . . . . . . . . . . Robots Disrupted 1 | . . . 1 . . . . . . . . Combat Hostiles 1 | . . . 1 . . . . . . . . Robots Corrupted 1 | . . . 1 . . . . . . . . Combat Hostiles . | . . . . . . . . . . . . Parts Fried 2 | . . . 2 . . . . . . . . Impact Corruptions . | . . . . . . . . . . . . Robots Melted 5 | . . 1 . 3 1 . . . . . . Combat Hostiles 4 | . . . . 3 1 . . . . . . Parts Melted 19 | . 3 2 . 11 1 . . . . . 2 Heat Transferred 9268 | 222 1409 2553 150 2590 605 . . . . . 1739 Parts Sabotaged . | . . . . . . . . . . . . Parts Stolen . | . . . . . . . . . . . . Parts Stripped . | . . . . . . . . . . . . Power Chain Reactions 3 | . . . 3 . . . . . . . . Alert | -11 -10 -9 -8 -7 -6 -6 -6 -5 -4 -3 -2 ------- Run | Yrd Mat Mat Mat Fac Fac Was Fac Fac Fac Res Res Maximum Alert Level 2 | . . 2 2 1 . . . . . 1 1 Low Security (%) 73 | 100 100 37 27 93 100 100 100 100 100 78 75 Level 1 18 | . . 44 41 6 . . . . . 21 24 Level 2 7 | . . 17 30 . . . . . . . . Level 3 . | . . . . . . . . . . . . Level 4 . | . . . . . . . . . . . . Level 5 . | . . . . . . . . . . . . High Security . | . . . . . . . . . . . . Max Security . | . . . . . . . . . . . . Peak Influence 526 | 15 109 431 526 232 72 23 31 64 104 270 344 Initial 232 | . . 29 164 232 65 23 2 . 30 54 106 Average 129 | 3 27 249 308 131 17 16 6 8 8 103 91 Influence Increases 5360 | 30 412 945 1126 519 303 . 124 293 214 495 899 Destroy 0b10 Robot/C 2340 | . 280 620 660 320 80 . . . . . 380 Destroy 0b10 Robot/NC 305 | 30 15 75 75 20 10 . 15 10 10 5 40 Destroy Leader 702 | . 64 196 206 94 22 . 4 4 . . 112 Successful Hack 135 | . 7 8 . 7 10 . 15 32 34 . 22 Disable Machine 165 | . . . 60 45 . . 15 30 15 . . Destroy Structure 393 | . 1 31 80 18 31 . 15 82 20 40 75 Partial Spotted 255 | . . 15 . 15 30 . 30 45 30 45 45 Lose Combat Pursuer 1065 | . 45 . 45 . 120 . 30 90 105 405 225 Influence Decreases 5154 | 30 342 625 1004 896 370 65 127 229 174 409 883 Entered New Map 831 | . . 41 226 280 70 45 1 . 34 50 84 Time Decay 3498 | 30 322 584 628 586 290 20 110 219 107 199 403 Search Patrol Dispatched 100 | . . . . . . . . . . 100 . Lost Part 474 | . 20 . 150 30 . . 10 . 28 60 176 Lost Ally 31 | . . . . . 10 . 6 10 5 . . Purge Threat 220 | . . . . . . . . . . . 220 Squads Dispatched 54 | . 3 4 8 8 7 . 1 7 3 2 11 Investigation 19 | . 2 . 2 3 3 . . 3 2 . 4 Extermination 18 | . . . . 4 3 . 1 3 1 2 4 Reinforcement 11 | . 1 4 3 1 1 . . 1 . . . Assault . | . . . . . . . . . . . . Garrison 6 | . . . 3 . . . . . . . 3 Intercept . | . . . . . . . . . . . . Searches Triggered 1 | . . . . . . . . . . 1 . Construction Impeded 1 | . . 1 . . . . . . . . . Haulers Reinforced 1 | . . . . 1 . . . . . . . Active Scanning Responses . | . . . . . . . . . . . . Cargo Convoy Interrupts 1 | . . . . . 1 . . . . . . Stealth | -11 -10 -9 -8 -7 -6 -6 -6 -5 -4 -3 -2 --------- Run | Yrd Mat Mat Mat Fac Fac Was Fac Fac Fac Res Res Distress Signals 20 | . 3 3 6 1 1 . . . . 5 1 Communications Jammed 89 | . . . . 2 . . . . . 16 71 Distress Signals 83 | . . . . 2 . . . . . 16 65 Times Spotted 302 | . 24 52 47 24 22 . 11 17 13 46 46 Peak Tracking Total 18 | . 5 5 7 4 5 . 4 7 9 18 11 Tactical Retreats 32 | . 2 . 3 . 6 . 2 3 2 7 7 Traps | -11 -10 -9 -8 -7 -6 -6 -6 -5 -4 -3 -2 ------- Run | Yrd Mat Mat Mat Fac Fac Was Fac Fac Fac Res Res Traps Triggered 17 | . 3 1 1 4 1 . 1 . 2 1 3 Indirectly . | . . . . . . . . . . . . Trap Hack Attempts . | . . . . . . . . . . . . Triggered . | . . . . . . . . . . . . Disarmed . | . . . . . . . . . . . . Reprogrammed . | . . . . . . . . . . . . Reused . | . . . . . . . . . . . . Traps Extracted . | . . . . . . . . . . . . Installed . | . . . . . . . . . . . . Triggered . | . . . . . . . . . . . . Machines | -11 -10 -9 -8 -7 -6 -6 -6 -5 -4 -3 -2 ---------- Run | Yrd Mat Mat Mat Fac Fac Was Fac Fac Fac Res Res Machines Disabled 11 | . . . 4 3 . . 1 2 1 . . Max in Single Turn 2 | . . . 2 1 . . 1 1 1 . . Garrison Access 7 | . . . . . 1 . 3 . 2 1 . Machines Repaired . | . . . . . . . . . . . . Machines Dismantled . | . . . . . . . . . . . . Machines Sabotaged . | . . . . . . . . . . . . Overloaded Fab Kills . | . . . . . . . . . . . . Hacking | -11 -10 -9 -8 -7 -6 -6 -6 -5 -4 -3 -2 --------- Run | Yrd Mat Mat Mat Fac Fac Was Fac Fac Fac Res Res Machines Accessed 68 | . 1 4 1 5 11 . 11 14 10 3 8 Terminals 35 | . 1 4 . 1 5 . 6 8 6 1 3 Fabricators 12 | . . . . 3 3 . . 3 . 1 2 Repair Stations 6 | . . . . . 1 . 1 2 1 . 1 Recycling Units 1 | . . . . . 1 . . . . . . Scanalyzers 3 | . . . . . . . 1 . 1 . 1 Garrison Access 11 | . . . 1 1 1 . 3 1 2 1 1 Total Hacks 173 | . 1 6 2 10 29 . 19 44 25 11 26 Successful 112 | . 1 2 . 6 18 . 10 25 21 11 18 Failed 60 | . . 4 2 4 11 . 9 19 4 . 7 Catastrophic 14 | . . 2 . 1 1 . 2 5 2 . 1 Database Lockouts 1 | . . . . . . . . . . . 1 Manual 93 | . 1 6 . 5 15 . 10 28 11 4 13 Terminals 81 | . 1 6 . 1 12 . 10 23 15 3 10 Fabricators 45 | . . . . 8 7 . . 13 . 7 10 Repair Stations 19 | . . . . . 3 . 2 5 6 . 3 Recycling Units 2 | . . . . . 2 . . . . . . Scanalyzers 6 | . . . . . . . 3 . 2 . 1 Garrison Access 20 | . . . 2 1 5 . 4 3 2 1 2 Terminal Hacks 30 | . 1 1 . 1 3 . 2 6 8 3 5 Part Schematic 7 | . 1 . . . 1 . . 2 2 . 1 Level Access Points 4 | . . . . . . . 1 1 1 . 1 Branch Access Points 2 | . . 1 . 1 . . . . . . . Terminal Index 5 | . . . . . 1 . 1 1 . 1 1 Fabricator Index 4 | . . . . . 1 . . 1 1 1 . Unreport Threat 3 | . . . . . . . . . . 1 2 Extermination Status 1 | . . . . . . . . . 1 . . Recall Investigation 2 | . . . . . . . . . 2 . . Recall Extermination 2 | . . . . . . . . 1 1 . . Fabricator Hacks 26 | . . . . 3 4 . . 7 . 6 6 Network Status 1 | . . . . . . . . . . . 1 Load Schematic 17 | . . . . 3 3 . . 5 . 3 3 Build 8 | . . . . . 1 . . 2 . 3 2 Repair Station Hacks 16 | . . . . . 2 . 2 4 6 . 2 Scan Component 8 | . . . . . 1 . 1 2 3 . 1 Repair 8 | . . . . . 1 . 1 2 3 . 1 Recycling Unit Hacks . | . . . . . . . . . . . . Scanalyzer 4 | . . . . . . . 2 . 2 . . Insert Component 1 | . . . . . . . . . 1 . . Retrieve Study 3 | . . . . . . . 2 . 1 . . Garrison Access Hacks 7 | . . . . . 1 . 3 . 2 1 . Seal Access 7 | . . . . . 1 . 3 . 2 1 . Unauthorized Hacks 29 | . . 1 . 2 8 . 1 8 3 1 5 Terminals 13 | . . 1 . . 4 . 1 3 3 . 1 Assimilate 6 | . . . . . 1 . 1 1 2 . 1 Botnet 6 | . . . . . 3 . . 2 1 . . Operators 1 | . . 1 . . . . . . . . . Fabricators 15 | . . . . 2 3 . . 5 . 1 4 Prioritize 6 | . . . . . 1 . . 2 . 1 2 Recompile 9 | . . . . 2 2 . . 3 . . 2 Repair Stations . | . . . . . . . . . . . . Recycling Units 1 | . . . . . 1 . . . . . . Mask 1 | . . . . . 1 . . . . . . Scanalyzers . | . . . . . . . . . . . . Garrison Access . | . . . . . . . . . . . . Data Cores Recovered 1 | . . . . . . . 1 . . . . Used 1 | . . . . . . . 1 . . . . Hacking Detections 38 | . . 2 1 3 5 . 7 9 4 1 6 Full Trace Events 6 | . . . 1 1 . . . . 2 . 2 Feedback Events 1 | . . . . . . . . . . . 1 Corruption 1 | . . . . . . . . . . . 1 Feedback Blocked . | . . . . . . . . . . . . Robot Schematics Acquired . | . . . . . . . . . . . . Robots Built . | . . . . . . . . . . . . Authchips . | . . . . . . . . . . . . Time . | . . . . . . . . . . . . Total Robot Build Rating . | . . . . . . . . . . . . Part Schematics Acquired 7 | . 1 . . . 1 . . 2 2 . 1 Parts Built 10 | . . . . . 1 . . 2 . 5 2 Authchips 7 | . . . . . 1 . . 2 . 3 1 Time 406 | . . . . . 26 . . 106 . 89 185 Total Part Build Rating 69 | . . . . . 6 . . 12 . 35 16 Part Studies Acquired 3 | . . . . . . . 2 . 1 . . Parts Repaired 8 | . . . . . 1 . 1 2 3 . 1 Time 470 | . . . . . 70 . 86 100 192 . 22 Parts Recycled . | . . . . . . . . . . . . Recycled Matter . | . . . . . . . . . . . . Retrieved Matter . | . . . . . . . . . . . . Retrieved Components . | . . . . . . . . . . . . Parts Scanalyzed . | . . . . . . . . . . . . Part Schematics Acquired . | . . . . . . . . . . . . Parts Damaged . | . . . . . . . . . . . . Bothacking | -11 -10 -9 -8 -7 -6 -6 -6 -5 -4 -3 -2 ------------ Run | Yrd Mat Mat Mat Fac Fac Was Fac Fac Fac Res Res Used RIF Installer . | . . . . . . . . . . . . Robots Hacked 1 | . . . . 1 . . . . . . . Non-combat 1 | . . . . 1 . . . . . . . Combat . | . . . . . . . . . . . . Robot Hacks Applied 1 | . . . . 1 . . . . . . . find_chute 1 | . . . . 1 . . . . . . . Relay Couplers Released . | . . . . . . . . . . . . Fabnet Peak Effective % . | . . . . . . . . . . . . Robots Rewired . | . . . . . . . . . . . . Allies Hacked . | . . . . . . . . . . . . Hacks Repelled . | . . . . . . . . . . . . Allies | -11 -10 -9 -8 -7 -6 -6 -6 -5 -4 -3 -2 -------- Run | Yrd Mat Mat Mat Fac Fac Was Fac Fac Fac Res Res Total Allies 4 | . . . . . 1 . 1 1 1 . . Largest Group 1 | . . . . . 1 . 1 1 1 . . Highest-Rated Group 26 | . . . . . 10 . 26 10 26 . . Highest-Rated Ally 26 | . . . . . 10 . 26 10 26 . . Total Orders 8 | . . . . . 1 . 3 2 2 . . STAY 5 | . . . . . 1 . 2 1 1 . . FOLLOW 3 | . . . . . . . 1 1 1 . . Ally Attacks . | . . . . . . . . . . . . Total Damage . | . . . . . . . . . . . . Kills . | . . . . . . . . . . . . Allies Corrupted . | . . . . . . . . . . . . Allies Melted . | . . . . . . . . . . . . Intel | -11 -10 -9 -8 -7 -6 -6 -6 -5 -4 -3 -2 ------- Run | Yrd Mat Mat Mat Fac Fac Was Fac Fac Fac Res Res Active Infowar (turns) 10559 | 39 2016 207 1326 1834 1322 44 450 903 570 581 1267 Optics 5789 | . . . 918 1834 1322 44 450 903 318 . . Sensors 4217 | . . . . 348 448 44 450 870 511 576 970 Terrain 1482 | . . . . . . . . 227 252 348 655 Seismic 4280 | 39 2016 207 408 847 763 . . . . . . Jamming 1948 | . . . . 509 348 . . . . 166 925 Robot Analysis Total . | . . . . . . . . . . . . Derelict Logs Recovered . | . . . . . . . . . . . . Drone Launches . | . . . . . . . . . . . . Drone Recoveries . | . . . . . . . . . . . . Exploration | -11 -10 -9 -8 -7 -6 -6 -6 -5 -4 -3 -2 ------------- Run | Yrd Mat Mat Mat Fac Fac Was Fac Fac Fac Res Res Turns Passed 13736 | 110 2016 2368 2161 1834 1322 44 450 903 570 581 1377 Spaces Moved 12928 | 53 733 1124 1047 981 1632 164 1427 2087 1021 1350 1309 Core 22 | 19 . . . . . . . . . . 3 Treads 4163 | 34 733 1124 1047 520 458 . . . . . 247 Legs . | . . . . . . . . . . . . Wheels 461 | . . . . 461 . . . . . . . Hover . | . . . . . . . . . . . . Flight 8282 | . . . . . 1174 164 1427 2087 1021 1350 1059 Fastest Speed 15 | 50 160 160 160 130 22 23 23 15 15 17 28 Average Speed 77 | 139 215 160 160 146 61 23 23 24 23 24 72 Slowest Speed 1300 | 200 240 240 240 240 160 23 23 107 94 28 1300 Overloaded Moves 30 | . . . . . . . . 1 12 17 . Propulsion Burnouts . | . . . . . . . . . . . . Robots Hopped 87 | . . . . . 28 . 12 14 5 26 2 Potential Cave-ins . | . . . . . . . . . . . . Cave-ins Triggered . | . . . . . . . . . . . . Exploration Rate (%) 49 | 3 96 96 81 33 48 87 32 44 21 23 25 Regions Visited 11 Branch Regions . Pre-discovered Areas . | . . . . . . . . . . . . Known Exits Taken 5 | . . . . 1 . . 1 1 1 1 . Unknown Exits Taken 4 | 1 1 1 1 . . . . . . . . Scrap Searched . | . . . . . . . . . . . . Spaces Dug 147 | . . 2 10 8 29 . 15 41 10 20 12 Terrain Destroyed 267 | . . 23 79 19 36 . 15 41 10 20 24 Melee 108 | . . . . . 19 . 15 41 10 20 3 Projectile 59 | . . 2 . 19 17 . . . . . 21 AOE 100 | . . 21 79 . . . . . . . . Terrain Rammed . | . . . . . . . . . . . . Walls Destroyed . | . . . . . . . . . . . . Machines Disabled . | . . . . . . . . . . . . Actions | -11 -10 -9 -8 -7 -6 -6 -6 -5 -4 -3 -2 --------- Run | Yrd Mat Mat Mat Fac Fac Was Fac Fac Fac Res Res Total 15524 | 72 1050 1465 1311 1264 1838 169 1503 2399 1307 1524 1622 Wait 1495 | 2 228 139 55 126 113 2 59 245 251 131 144 Move 12754 | 52 732 1123 1046 980 1580 163 1404 2058 1010 1301 1305 Hop 77 | . . . . . 24 . 10 14 5 22 2 Pick Up 128 | 3 11 20 15 17 14 2 1 9 7 9 20 Fast Attach 74 | 7 1 4 14 9 9 . . 6 1 8 15 Attach 53 | . 2 1 8 3 5 . 1 3 5 7 18 Detach 34 | . . 1 3 1 4 . 1 2 1 3 18 Swap 137 | . 9 28 28 25 14 1 2 12 2 6 10 Drop 143 | 1 6 30 24 29 21 1 2 4 1 9 15 Fire 460 | 7 60 118 118 66 27 . . . . . 64 Melee 155 | . . . . 1 27 . 23 46 24 28 6 Ram . | . . . . . . . . . . . . Kick . | . . . . . . . . . . . . Crush 7 | . 1 1 . . . . . . . . 5 Escape Stasis 7 | . . . . 7 . . . . . . . Rewire . | . . . . . . . . . . . . Trap . | . . . . . . . . . . . . Miscellaneous . | . . . . . . . . . . . . Route ------- -11/Scrapyard -10/Materials (discovered 5 exits: *Mat x3 / [*Min] / [*Sub]) -9/Materials (discovered 4 exits: *Mat x3 / *Min) -8/Materials (discovered 3 exits: *Fac x3) -7/Factory (discovered 4 exits: *Fac / Sto / Low x2) -6/Factory (discovered 2 exits: *Fac / *Low) -6/Waste -6/Factory (discovered 5 exits: *Fac x4 / *Low) -5/Factory (discovered 5 exits: *Fac x4 / *Upp) -4/Factory (discovered 4 exits: *Res x4) -3/Research (discovered 3 exits: *Res x2 / *Arm) -2/Research (discovered 4 exits: Acc x3 / [Tes]) History --------- Turn | Location | Event 21 | -11/Scrapyard | Discovered new exit (range 16) 111 | -11/Scrapyard | Entered Materials 304 | -10/Materials | Build established: Mutant 322 | -10/Materials | Discovered new exit (range 16) 391 | -10/Materials | Discovered new exit (range 10) 523 | -10/Materials | Discovered new exit (range 10) 604 | -10/Materials | Core integrity fell below 50% 987 | -10/Materials | Build established: Scavenger-Mutant 1310 | -10/Materials | Discovered new exit (range 14) 1488 | -10/Materials | Discovered new exit (range 10) 2127 | -10/Materials | Entered another Materials area 2127 | -9/Materials | Evolved 2 slots: Propulsion x1, Utility x1 2660 | -9/Materials | Discovered new exit (range 4) 3083 | -9/Materials | Discovered new exit (range 16) 3210 | -9/Materials | Discovered new exit (range 15) 3646 | -9/Materials | Discovered new exit (range 16) 4293 | -9/Materials | Identified exit to Mines 4495 | -9/Materials | Entered another Materials area 4495 | -8/Materials | Evolved 2 slots: Propulsion x1, Utility x1 5173 | -8/Materials | Discovered new exit (range 8) 5213 | -8/Materials | Garrison activated, responded to threat 5455 | -8/Materials | Lost 3 parts (1p2u) 5591 | -8/Materials | Discovered new exit (range 7) 5612 | -8/Materials | Lost 3 parts (2n1u) 6601 | -8/Materials | Discovered new exit (range 7) 6656 | -8/Materials | Entered Factory 6656 | -7/Factory | Evolved 2 slots: Utility x2 7775 | -7/Factory | Build established: Mutant 8064 | -7/Factory | Identified exit to Storage 8064 | -7/Factory | Identified exit to Lower Caves 8426 | -7/Factory | Discovered new exit (range 5) 8432 | -7/Factory | Identified exit to Factory 8490 | -7/Factory | Entered another Factory area 8490 | -6/Factory | Evolved 2 slots: Utility x2 9215 | -6/Factory | Repaired Cld. Particle Cannon? 9478 | -6/Factory | Discovered new exit (range 20) 9510 | -6/Factory | Discovered new exit (range 2) 9510 | -6/Factory | Identified exit to Lower Caves 9587 | -6/Factory | Spotted B-75 Beast 9668 | -6/Factory | Cargo convoy interrupted 9693 | -6/Factory | Fabricated Adv. Hacking Suite? 9773 | -6/Factory | Build established: Hacker-Scout 9812 | -6/Factory | Sucked down chute 9812 | -6/Factory | Entered Waste 9812 | -6/Waste | The area was eerily silent 9851 | -6/Waste | Discovered new exit (range 13) 9854 | -6/Waste | Identified exit to Factory 9856 | -6/Waste | Entered Factory 9865 | -6/Factory | Spotted B-75 Beast 9979 | -6/Factory | Identified exit to Factory 10046 | -6/Factory | Repaired Broken Impulse Thruster? 10294 | -6/Factory | Discovered exit to Lower Caves (range 7) 10306 | -6/Factory | Entered another Factory area 10306 | -5/Factory | Evolved 2 slots: Propulsion x1, Utility x1 10371 | -5/Factory | Repaired Imp. Surge Thruster+ 10643 | -5/Factory | Fabricated Adv. Hacking Suite (x1) 10725 | -5/Factory | Repaired Imp. Surge Thruster+ 10783 | -5/Factory | Discovered new exit (range 5) 10783 | -5/Factory | Identified exit to Upper Caves 11053 | -5/Factory | Discovered new exit (range 12) 11084 | -5/Factory | Identified exit to Factory 11143 | -5/Factory | Fabricated Adv. Hacking Suite (x1) 11209 | -5/Factory | Entered another Factory area 11209 | -4/Factory | Evolved 2 slots: Power x1, Propulsion x1 11278 | -4/Factory | Repaired Impulse Thruster? 11331 | -4/Factory | Repaired Imp. Surge Thruster+ 11413 | -4/Factory | Repaired Biomechanical Wings 11428 | -4/Factory | Build established: Wizard-Scout 11447 | -4/Factory | Identified exit to Research 11724 | -4/Factory | Spotted B-86 Titan 11779 | -4/Factory | Entered Research 11779 | -3/Research | Evolved 2 slots: Utility x2 11868 | -3/Research | Discovered new exit (range 5) 11871 | -3/Research | Identified exit to Research 11904 | -3/Research | Spotted B-86 Titan 11942 | -3/Research | Fabricated Lrn. Sensor Array (x2) 11978 | -3/Research | Fabricated Exp. Terrain Scan Processor (x1) 12000 | -3/Research | Fabricated Lrn. Terrain Scanner (x2) 12032 | -3/Research | Discovered exit to Research (range 22) 12183 | -3/Research | Lost 3 parts (3u) 12186 | -3/Research | Discovered new exit (range 11) 12188 | -3/Research | Identified exit to Armory 12279 | -3/Research | Search patrols dispatched 12360 | -3/Research | Entered another Research area 12360 | -2/Research | Evolved 2 slots: Power x1, Weapon x1 12391 | -2/Research | Lost 3 parts (1n1u1w) 12411 | -2/Research | Repaired Mic. Nuclear Core 12521 | -2/Research | Fabricated Exp. Signal Interpreter (x1) 12636 | -2/Research | Fabricated Biometal Heavy Treads? 12868 | -2/Research | Found Prototype Protection 12868 | -2/Research | Identified Centrium Heavy Armor Plating 12872 | -2/Research | Found Centrium Heavy Armor Plating 12936 | -2/Research | Found Centrium Heavy Armor Plating 12948 | -2/Research | Destroyed 7 combat bots 12953 | -2/Research | Found Centrium Heavy Armor Plating 13024 | -2/Research | Discovered new exit (range 23) 13103 | -2/Research | Found Prototype Device 13103 | -2/Research | Identified Exp. Transmission Jammer 13137 | -2/Research | Found Prototype Device 13137 | -2/Research | Identified Exp. EM Shield 13153 | -2/Research | Identified exit to Access 13300 | -2/Research | Central database locked down 13392 | -2/Research | Build established: Hacker-Mutant 13673 | -2/Research | System corruption reached 10% 13688 | -2/Research | Lost 3 parts (2p1u) 13729 | -2/Research | Core integrity fell below 50% 13734 | -2/Research | Core integrity fell below 20% 13737 | -2/Research | Destroyed by P-80 Master with Gamma Rifle Last Messages --------------- System. 13725_ K-01 Serf collects debris. 13727_ R-10 Processor collects Wheel. 13727_ Mic. Antimatter Reactor destroyed. 13727_ Critical hit (Burn: +37). 13728_ Penetrated by Slug. 13728_ Adv. Cryofiber Web destroyed. 13728_ Slug penetrates G-73 Enforcer. 13728_ K-01 Serf collects debris. 13730_ Critical hit (Burn: +37). 13731_ R-10 Processor collects Imp. Antigrav System. 13733_ Critical hit (Burn: +37). 13733_ Penetrated by Slug. 13734_ K-01 Serf collects debris. 13734_ Adv. Hacking Suite destroyed. 13735_ R-10 Processor collects Adv. Target Analyzer. 13736_ P-80 Master destroyed. 13737_ System corrupted: Matter fused (-7). Map ----- +----------------------------------------------------+ | ?????? ###?###" ?#### " " ?? # ??##? #?? ?? | | ??????+###?###?"?##### "R" ?#?? #### ### ? ?? | | ????? ? #####?#?## ?"" ?# T??#?#?#? ? | | ????? #############?######? ### #######?? | | ?????? #############?###??# #### ######??? | | ??? ?"S ? #######?##########?# ??###? ######?#? | | ???? """ ? #################### ####+##?#####? | | ??? "" #################### # ?### | | ??? ###?####?# # # #### | | ??? ####?##### # # #?## | | ???#######+######?#### ""G"" # # ? #### | | ??#?###?## ########### %" " + + ""Y"" #### | | ??? ?#### ###?####### %"%" # # """"" #### | | ??? ??#?## #######?### % = # %# ?? #### | | ??? ?#### ########### % # %=# ? ? #### | | ?? ? #### #########?# # %############## | | ??? #### ###############+##### % %# ## | | ??? ##?# #######?#?##### ##### % *# ## | | ??? ##?# ############?## ##### [% # ## | | ??? ?#### ##?###?########h##?##!%= # ## | | ????? ###? ?#########?#?#= ;####%*[ # ## | | ???? ??## ?#####?#?#?####g#####[%==# ## | | ??? #### + ##?## |g!gR #%!! # ## | | ??? ??## # ? ??##### *p% #=%= # ## | | ????###### # ?? ##### !|%g # #####+######## | | ????? ? + ?##?## @ !p R^% % | | ??????###?## ?? ?#### * !#=! | | ???????##### ? ? ##### k #*% | | ?????#??##?###??####### # % | | ???????##?#?########### # ############## | | ?????????##?#?######### # ############# | | ?????????#?##?################## ############# | | ??????????#??#############?#?### ############# | | ??????????#??##?################*%! ############# | | ???????????##?####?#############%* =#############" | | ?????????????#####?#############! =%#############" | | ????????????#??##??#?? ? # # ####" | | ??????????????##?##### ? # # #### | | ???????????????#??#?## # # #### | | ???????????????##?##?# """"" + + ##### | | ????????????#???#?#### """"" # # ##### | | ????????????????##?### """"" # # ##### | | ???????????????#?##### # # ##### | | ?????????????#??###?## # # ##### | | ??????????????#?##########+##### # ##### | | ????????????# # ##### ############## | | ????????????# # ##### | | ???????????## "?""""" # ##### | | ???????????## """"""" # ##### | | ?????????#?# """"""" # ## | +----------------------------------------------------+ Best States ------------- Heat Dissipation 87 Energy Generation 51 Energy Capacity 350 Matter Stores 300 Matter Capacity 300 Sight Range 22 Robot Scan Range 18 Terrain Scan Range 24 Terrain Scan Density 1010 Jamming Range 22 Base Temperature (-) 200 Armor Coverage 2400 Resistance: EM 20 Core Shielding 20 Propulsion Shielding 90 Evasion (%) 65 Recoil Reduction 4 Offensive Hacking 60 Defensive Hacking 22 Authchip Count 4 Item Schematics ----------------- Signal Interpreter | -10/Materials | Hacked Adv. Hacking Suite | -6/Factory | Hacked Lrn. Sensor Array | -5/Factory | Hacked Lrn. Terrain Scanner | -5/Factory | Hacked Exp. Terrain Scan Processor | -4/Factory | Hacked Exp. Signal Interpreter | -4/Factory | Hacked Centrium Heavy Treads | -2/Research | Hacked Robot Schematics ------------------ None Fabricated ------------ Adv. Hacking Suite | x1 | -6/Factory | Authchip Adv. Hacking Suite | x1 | -5/Factory | Authchip Adv. Hacking Suite | x1 | -5/Factory | Authchip Lrn. Sensor Array | x2 | -3/Research | Authchip Exp. Terrain Scan Processor | x1 | -3/Research | Authchip Lrn. Terrain Scanner | x2 | -3/Research | Authchip Exp. Signal Interpreter | x1 | -2/Research | Authchip Biometal Heavy Treads | x1 | -2/Research | Preloaded Repaired ---------- Cld. Particle Cannon | 27% | -6/Factory Impulse Thruster | 15% | -6/Factory | Broken Imp. Surge Thruster | 46% | -5/Factory Imp. Surge Thruster | 58% | -5/Factory Impulse Thruster | 7% | -4/Factory Imp. Surge Thruster | 46% | -4/Factory Biomechanical Wings | 5% | -4/Factory Mic. Nuclear Core | 14% | -2/Research Studied --------- Imp. Surge Thruster | -6/Factory | Hacked Lgt. Fission Core | -6/Factory | Hacked Nuclear Pulse Array | -4/Factory | Hacked Alien Tech Used ----------------- None Achievements -------------- None Challenges ------------ None Game ------ Seed SpikedSwarmArticulator Manual? 0 Play Time 02:42:49 Cumulative 331.4 hours Start 2025.12.28 @ 12:53:39 End 2025.12.28 @ 16:46:37 Sessions 3 Manual Loads 0 Difficulty Rogue Special Mode None Game No. 228 Rogue 225 Adventurer 3 Explorer 0 Win Type - Total 16 Types 8/1/3/1/1/0/0/1/0/1 Lore% 77 Gallery% 79 Achievement% 71 Wizard Run 0 Options --------- Layout 2 ASCII 0 Keyboard 1 Movement Arrows Keybinds 0 Fullscreen 1 Font 32/SmallcapsGlow Map View 50x44 Zoom Use 0% Tactical HUD 1 Map Filters NONE Filters NONE Steam 1 RUN: 08399175-7ded-4f55-9cf3-b1f6da49367a